fUSD/lending_fUSD_20260117
["ID","MTS","AMOUNT","RATE_DAILY","PERIOD"]
[402219780,1768609842058,-2000.0,0.0001493,2]
[402219781,1768609842067,-2000.0,0.0001493,2]
[402219782,1768609842077,-9000.0,0.0001493,2]
[402219783,1768609842087,-2000.0,0.0001493,2]
[402219784,1768609842096,-9000.0,0.0001493,2]
[402219785,1768609842106,-2000.0,0.0001493,2]
[402219786,1768609842116,-9000.0,0.0001493,2]
[402219787,1768609842125,-2000.0,0.0001493,2]
[402219788,1768609842134,-9000.0,0.0001493,2]
[402219789,1768609842144,-2000.0,0.0001493,2]
[402219790,1768609842153,-9000.0,0.0001493,2]
[402219791,1768609842163,-2000.0,0.0001493,2]
[402219792,1768609842173,-9000.0,0.0001493,2]
[402219793,1768609842183,-2000.0,0.0001493,2]
[402219794,1768609842192,-9000.0,0.0001493,2]
[402219795,1768609842202,-9000.0,0.0001493,2]
[402219796,1768609842211,-9000.0,0.0001493,2]
[402219797,1768609842221,-9000.0,0.0001493,2]
[402219798,1768609842230,-500.0,0.0001493,2]
[402219799,1768609842239,-500.0,0.0001493,2]
[402219800,1768609842248,-500.0,0.0001493,2]
[402219801,1768609842256,-500.0,0.0001493,2]
[402219802,1768609842265,-500.0,0.0001493,2]
[402219803,1768609842275,-500.0,0.0001493,2]
[402219804,1768609842284,-500.0,0.0001493,2]
[402219805,1768609842293,-500.0,0.0001493,2]
[402219806,1768609842302,-500.0,0.0001493,2]
[402219807,1768609842312,-500.0,0.0001493,2]
[402219808,1768609842321,-500.0,0.0001493,2]
[402219809,1768609842330,-500.0,0.0001493,2]
[402219810,1768609842497,-500.0,0.0001493,2]
[402219811,1768609842507,-500.0,0.0001493,2]
[402219812,1768609842516,-500.0,0.0001493,2]
[402219813,1768609842526,-500.0,0.0001493,2]
[402219814,1768609842535,-500.0,0.0001493,2]
[402219815,1768609842544,-500.0,0.0001493,2]
[402219816,1768609842554,-1000.0,0.0001493,2]
[402219817,1768609842563,-500.0,0.0001493,2]
[402219818,1768609842572,-500.0,0.0001493,2]
[402219819,1768609842582,-1000.0,0.0001493,2]
[402219820,1768609842591,-250.0,0.0001493,2]
[402219821,1768609842601,-1000.0,0.0001493,2]
[402219822,1768609842610,-500.0,0.0001493,2]
[402219823,1768609842619,-250.0,0.0001493,2]
[402219824,1768609842628,-209.40437684,0.0001493,2]
[402219825,1768609842638,-1000.0,0.0001493,2]
[402219826,1768609842647,-500.0,0.0001493,2]
[402219827,1768609842656,-250.0,0.0001493,2]
[402219828,1768609842665,-1000.0,0.0001493,2]
[402219829,1768609842674,-250.0,0.0001493,2]
[402219830,1768609842683,-1000.0,0.0001493,2]
[402219831,1768609842692,-250.0,0.0001493,2]
[402219832,1768609842701,-1000.0,0.0001493,2]
[402219833,1768609842710,-250.0,0.0001493,2]
[402219834,1768609842719,-1000.0,0.0001493,2]
[402219835,1768609842728,-250.0,0.0001493,2]
[402219836,1768609842737,-1000.0,0.0001493,2]
[402219837,1768609842746,-250.0,0.0001493,2]
[402219838,1768609842755,-1000.0,0.0001493,2]
[402219839,1768609842764,-250.0,0.0001493,2]
[402219840,1768609842774,-1000.0,0.0001493,2]
[402219841,1768609842783,-578.20924308,0.0001493,2]
[402219842,1768609842792,-250.0,0.0001493,2]
[402219843,1768609842801,-3000.0,0.0001493,2]
[402219844,1768609842810,-1000.0,0.0001493,2]
[402219845,1768609842819,-250.0,0.0001493,2]
[402219846,1768609842828,-3000.0,0.0001493,2]
[402219847,1768609842837,-3000.0,0.0001493,2]
[402219849,1768609842847,-151.0,0.0001493,2]
[402219850,1768609842856,-958.82692039,0.0001493,2]
[402219852,1768609842865,-500.0,0.0001493,2]
[402219854,1768609842874,-500.0,0.0001493,2]
[402219856,1768609842883,-500.0,0.0001493,2]
[402219858,1768609842893,-500.0,0.0001493,2]
[402219859,1768609842902,-500.0,0.0001493,2]
[402219860,1768609842911,-500.0,0.0001493,2]
[402219861,1768609842920,-500.0,0.0001493,2]
[402219862,1768609842930,-500.0,0.0001493,2]
[402219863,1768609842944,-500.0,0.0001493,2]
[402219864,1768609842953,-620.0,0.0001493,2]
[402219865,1768609842962,-500.0,0.0001493,2]
[402219866,1768609842972,-250.0,0.0001493,2]
[402219867,1768609842982,-721.12765535,0.0001493,2]
[402219868,1768609842991,-9000.0,0.00014985,2]
[402219869,1768609843000,-647.08594038,0.00015,2]
[402219871,1768609843011,-9000.0,0.0001504,2]
[402219873,1768609843021,-9000.0,0.00015095,2]
[402219875,1768609843030,-150.0,0.00015095,2]
[402219877,1768609843039,-1432.67,0.00015132,2]
[402219880,1768609843049,-9000.0,0.0001515,2]
[402219883,1768609843058,-748.48614739,0.00015191,2]
[402219884,1768609843068,-9000.0,0.00015205,2]
[402219885,1768609843077,-9000.0,0.0001526,2]
[402219886,1768609843086,-4320.51577774,0.00015266,2]
[402219888,1768609843095,-13822.4647637,0.00015266,2]
[402219889,1768609843104,-500.0,0.0001531,2]
[402219890,1768609843113,-500.0,0.0001531,2]
[402219891,1768609843122,-500.0,0.0001531,2]
[402219892,1768609843131,-9000.0,0.00015315,2]
[402219893,1768609843139,-433.0,0.00015348,2]
[402219894,1768609843149,-9000.0,0.0001537,2]
[402219896,1768609843158,-1432.67,0.00015406,2]
[402219898,1768609843167,-181.08010149,0.00015478,2]
[402219899,1768609843177,-595.37131296,0.00015478,2]
[402219900,1768609843186,-330.28989388,0.00015478,2]
[402219901,1768609843195,-151.0,0.00015478,2]
[402219902,1768609843205,-1432.67,0.0001568,2]
[402219903,1768609843214,-587.0,0.00015682,2]
[402219904,1768609843223,-1000.0,0.00015696,2]
[402219905,1768609843232,-500.0,0.00015761,2]
[402219906,1768609843245,-4320.51577774,0.00015793,2]
[402219907,1768609843255,-13822.4647637,0.00015793,2]
[402219908,1768609843263,-2043.68937017,0.00015807,2]
[402219909,1768609843272,-413.81,0.00015812,2]
[402219910,1768609843282,-748.48614739,0.00015868,2]
[402219911,1768609843291,-4100.0,0.000159,5]
[402219912,1768609843300,-630.2083617,0.000159,2]
[402219913,1768609843310,-622.09393551,0.00015908,2]
[402219914,1768609843319,-1000.0,0.00015918,2]
[402219915,1768609843328,-1432.67,0.00015954,2]
[402219916,1768609843337,-30478.0,0.00015973,2]
[402219917,1768609843347,-179.83381,0.00015997,2]
[402219918,1768609843357,-222062.92428664,0.00016,2]
[402219919,1768609843366,-860226.07922797,0.00016,4]
[402219920,1768609843376,-150.0,0.00016,2]
[402219921,1768609843386,-187.78006525,0.00016026,2]
[402219922,1768609843396,-617.40005154,0.00016026,2]
[402219923,1768609843405,-151.0,0.00016026,2]
[402219924,1768609843414,-500.0,0.00016082,2]
[402219925,1768609843424,-198531.70600792,0.000162,5]
[402219926,1768609843433,-999.0,0.00016223,3]
[402219927,1768609843442,-1432.68018451,0.00016228,2]
[402219928,1768609843452,-334.5472959,0.00016299,2]
[402219929,1768609843461,-1239.0,0.00016299,2]
[402219930,1768609843470,-642.94,0.00016299,2]
[402219931,1768609843493,-4320.51577774,0.0001632,2]
[402219932,1768609843509,-13822.4647637,0.0001632,2]
[402219933,1768609843530,-200.0,0.0001634,2]
[402219935,1768609843548,-600.0,0.00016356,2]
[402219936,1768609843565,-1500.0,0.00016356,2]
[402219939,1768609843584,-500.0,0.00016356,2]
[402219940,1768609843604,-835.0,0.000164,2]
[402219941,1768609843625,-500.0,0.00016438,2]
[402219944,1768609843644,-500.0,0.00016438,2]
[402219947,1768609843663,-500.0,0.00016438,2]
[402219948,1768609843687,-500.0,0.00016438,2]
[402219949,1768609843701,-500.0,0.00016438,2]
[402219950,1768609843720,-500.0,0.00016438,2]
[402219951,1768609843732,-500.0,0.00016438,2]
[402219952,1768609843750,-500.0,0.00016438,2]
[402219953,1768609843763,-500.0,0.00016438,2]
[402219954,1768609843778,-500.0,0.00016438,2]
[402219955,1768609843793,-500.0,0.00016438,2]
[402219956,1768609843808,-500.0,0.00016438,2]
[402219957,1768609843829,-500.0,0.00016438,2]
[402219958,1768609843859,-500.0,0.00016438,2]
[402219959,1768609843877,-500.0,0.00016438,2]
[402219960,1768609843893,-500.0,0.00016438,2]
[402219961,1768609843908,-500.0,0.00016438,2]
[402219962,1768609843926,-500.0,0.00016438,2]
[402219963,1768609843943,-500.0,0.00016438,2]
[402219964,1768609843957,-500.0,0.00016438,2]
[402219965,1768609843972,-523.13442003,0.00016438,2]
[402219966,1768609843987,-500.0,0.00016438,2]
[402219967,1768609844001,-500.0,0.00016438,2]
[402219968,1768609844016,-500.0,0.00016438,2]
[402219969,1768609844031,-500.0,0.00016438,2]
[402219970,1768609844046,-500.0,0.00016438,2]
[402219971,1768609844062,-500.0,0.00016438,2]
[402219972,1768609844076,-500.0,0.00016438,2]
[402219973,1768609844091,-500.0,0.00016438,2]
[402219974,1768609844107,-500.0,0.00016438,2]
[402219975,1768609844122,-500.0,0.00016438,2]
[402219976,1768609844136,-500.0,0.00016438,2]
[402219977,1768609844152,-500.0,0.00016438,2]
[402219978,1768609844167,-500.0,0.00016438,2]
[402219979,1768609844181,-500.0,0.00016438,2]
[402219980,1768609844196,-500.0,0.00016438,2]
[402219981,1768609844210,-500.0,0.00016438,2]
[402219982,1768609844224,-500.0,0.00016438,2]
[402219983,1768609844238,-500.0,0.00016438,2]
[402219984,1768609844253,-500.0,0.00016438,2]
[402219985,1768609844267,-500.0,0.00016438,2]
[402219986,1768609844281,-500.0,0.00016438,2]
[402219987,1768609844297,-500.0,0.00016438,2]
[402219988,1768609844314,-500.0,0.00016438,2]
[402219989,1768609844329,-152.57049112,0.00016438,2]
[402219990,1768609844344,-500.0,0.00016438,2]
[402219991,1768609844359,-500.0,0.00016438,2]
[402219992,1768609844373,-500.0,0.00016438,2]
[402219993,1768609844388,-500.0,0.00016438,2]
[402219994,1768609844405,-500.0,0.00016438,2]
[402219995,1768609844421,-500.0,0.00016438,2]
[402219996,1768609844436,-500.0,0.00016438,2]
[402219997,1768609844452,-500.0,0.00016438,2]
[402219998,1768609844468,-500.0,0.00016438,2]
[402219999,1768609844484,-500.0,0.00016438,2]
[402220000,1768609844498,-500.0,0.00016438,2]
[402220001,1768609844513,-500.0,0.00016438,2]
[402220002,1768609844529,-500.0,0.00016438,2]
[402220003,1768609844544,-500.0,0.00016438,2]
[402220004,1768609844559,-500.0,0.00016438,2]
[402220005,1768609844574,-500.0,0.00016438,2]
[402220006,1768609844589,-500.0,0.00016438,2]
[402220007,1768609844604,-500.0,0.00016438,2]
[402220008,1768609844618,-500.0,0.00016438,2]
[402220009,1768609844632,-500.0,0.00016438,2]
[402220010,1768609844647,-500.0,0.00016438,2]
[402220011,1768609844662,-249.99999999,0.00016438,2]
[402220012,1768609844677,-500.0,0.00016438,2]
[402220013,1768609844693,-500.0,0.00016438,2]
[402220014,1768609844707,-500.0,0.00016438,2]
[402220015,1768609844721,-500.0,0.00016438,2]
[402220016,1768609844736,-500.0,0.00016438,2]
[402220017,1768609844750,-500.0,0.00016438,2]
[402220018,1768609844765,-500.0,0.00016438,2]
[402220019,1768609844780,-800.0,0.00016438,2]
[402220020,1768609844794,-165.04,0.0001644,2]
[402220021,1768609844809,-1222.29178666,0.00016444,2]
[402220022,1768609844823,-5003.03273076,0.00016463,2]
[402220023,1768609844838,-5000.0,0.00016463,2]
[402220024,1768609844853,-5000.0,0.00016463,2]
[402220025,1768609844868,-5000.0,0.00016463,2]
[402220026,1768609844883,-5000.0,0.00016463,2]
[402220027,1768609844900,-500.0,0.00016493,2]
[402220028,1768609844915,-1000.0,0.00016515,2]
[402220029,1768609844930,-170.72,0.00016542,2]
[402220030,1768609844948,-748.48614739,0.00016545,2]
[402220031,1768609844963,-500.0,0.00016548,2]
[402220032,1768609844981,-194.72792766,0.00016574,2]
[402220033,1768609844999,-640.24385345,0.00016574,2]
[402220034,1768609845016,-248.38210406,0.00016574,2]
[402220035,1768609845031,-359.95197516,0.000166,2]
[402220036,1768609845046,-500.0,0.00016602,2]
[402220037,1768609845061,-736.0,0.00016652,2]
[402220038,1768609845076,-500.0,0.00016657,2]
[402220039,1768609845091,-500.0,0.00016685,2]
[402220040,1768609845107,-413.81,0.0001669,2]
[402220041,1768609845120,-500.0,0.00016712,2]
[402220042,1768609845135,-166.27,0.00016712,2]
[402220043,1768609845150,-500.0,0.00016758,2]
[402220044,1768609845389,-207.59580068,0.00016758,2]
[402220045,1768609845436,-15084.69728878,0.00016761,2]
[402220046,1768609845446,-500.0,0.00016767,2]
[402220047,1768609845456,-436.23999182,0.00016781,2]
[402220048,1768609845466,-500.0,0.00016822,2]
[402220049,1768609845475,-4320.51577774,0.00016846,2]
[402220050,1768609845485,-13822.4647637,0.00016846,2]
[402220051,1768609845495,-198.58095138,0.00016866,2]
[402220052,1768609845506,-500.0,0.00016866,2]
[402220053,1768609845517,-500.0,0.00016876,2]
[402220054,1768609845527,-630.20836169,0.000169,2]
[402220055,1768609845536,-156.52,0.0001692,2]
[402220056,1768609845546,-500.0,0.00016931,2]
[402220057,1768609845556,-200.0,0.00016983,2]
[402220058,1768609845565,-500.0,0.00016986,2]
[402220059,1768609845575,-250.0,0.00017,2]
[402220060,1768609845585,-24505.99823965,0.00017,2]
[402220061,1768609845594,-155.53654206,0.00017028,2]
[402220062,1768609845607,-500.0,0.00017041,2]
[402220063,1768609845617,-540.0,0.00017096,2]
[402220064,1768609845626,-1733.2975304,0.000171,2]
[402220065,1768609845636,-1000.0,0.00017105,2]
[402220066,1768609845645,-1000.0,0.00017105,2]
[402220067,1768609845654,-1000.0,0.00017105,2]
[402220068,1768609845664,-1000.0,0.00017105,2]
[402220069,1768609845673,-588.308,0.00017105,2]
[402220070,1768609845682,-1000.0,0.00017112,2]
[402220071,1768609845692,-201.93286099,0.00017122,2]
[402220072,1768609845701,-663.93287602,0.00017122,2]
[402220073,1768609845710,-310.12,0.00017126,14]
[402220074,1768609845720,-150.0,0.00017136,2]
[402220075,1768609845730,-1000.0,0.00017177,2]
[402220076,1768609845739,-823.0,0.00017197,2]
[402220077,1768609845748,-1000.0,0.00017198,2]
[402220078,1768609845758,-170.72,0.00017198,2]
[402220079,1768609845768,-1000.0,0.00017215,2]
[402220080,1768609845777,-748.48614739,0.00017223,2]
[402220081,1768609845786,-250.0,0.0001723,2]
[402220082,1768609845799,-150.0,0.00017236,2]
[402220083,1768609845809,-1000.0,0.00017268,2]
[402220084,1768609845819,-1000.0,0.00017321,2]
[402220085,1768609845829,-163.0,0.0001736,2]
[402220086,1768609845839,-831.0,0.0001736,2]
[402220087,1768609845848,-1255.0,0.00017361,2]
[402220088,1768609845858,-4320.51577774,0.00017373,2]
[402220089,1768609845868,-13822.4647637,0.00017373,2]
[402220090,1768609845877,-1000.0,0.00017381,2]
[402220091,1768609845887,-1000.0,0.000174,2]
[402220092,1768609845896,-5400.0,0.000174,6]
[402220093,1768609845906,-150.0,0.00017413,2]
[402220094,1768609845915,-1000.0,0.00017424,2]
[402220095,1768609845925,-5562.853,0.00017424,2]
[402220096,1768609845937,-349.111,0.00017424,2]
[402220097,1768609845946,-1000.0,0.00017433,2]
[402220098,1768609845956,-156.52,0.00017439,2]
[402220099,1768609845966,-1000.0,0.0001744,2]
[402220100,1768609845976,-5421.7,0.00017454,2]
[402220101,1768609845986,-614.0,0.00017479,2]
[402220102,1768609845996,-4824.0,0.00017479,2]
[402220103,1768609846008,-1255.0,0.00017479,2]
[402220104,1768609846018,-1000.0,0.00017482,2]
[402220105,1768609846027,-1555.0,0.00017483,2]
[402220106,1768609846037,-1000.0,0.0001749,2]
[402220107,1768609846047,-2000.0,0.000175,2]
[402220108,1768609846056,-1602.74427831,0.000175,2]
[402220109,1768609846066,-6800.0,0.000175,6]
[402220110,1768609846076,-5421.7,0.00017504,2]
[402220111,1768609846085,-1000.0,0.00017522,2]
[402220112,1768609846095,-1042.88649814,0.00017534,2]
[402220113,1768609846105,-5421.7,0.00017553,2]
[402220114,1768609846114,-14438.53227137,0.00017555,2]
[402220115,1768609846124,-1555.0,0.00017563,2]
[402220116,1768609846133,-1000.0,0.00017567,2]
[402220117,1768609846143,-413.81,0.00017569,2]
[402220118,1768609846152,-1000.0,0.00017576,2]
[402220119,1768609846162,-1000.0,0.00017587,2]
[402220120,1768609846172,-155.53654206,0.00017595,2]
[402220121,1768609846181,-1000.0,0.000176,2]
[402220122,1768609846193,-1300.0,0.000176,6]
[402220123,1768609846202,-5421.7,0.00017603,2]
[402220124,1768609846212,-579.67,0.00017608,2]
[402220125,1768609846221,-1555.0,0.00017637,2]
[402220126,1768609846231,-2170.30482224,0.0001764,2]
[402220127,1768609846240,-1555.0,0.00017641,2]
[402220128,1768609846250,-1000.0,0.00017646,2]
[402220129,1768609846259,-5421.7,0.00017653,2]
[402220130,1768609846268,-1255.0,0.00017661,2]
[402220131,1768609846278,-346.92554585,0.00017668,2]
[402220132,1768609846288,-1239.0,0.00017668,2]
[402220133,1768609846297,-718.67186054,0.00017668,2]
[402220134,1768609846306,-599.60298507,0.00017669,2]
[402220135,1768609846316,-747.8093786,0.00017669,2]
[402220136,1768609846327,-209.40437684,0.0001767,2]
[402220137,1768609846337,-688.49839244,0.0001767,2]
[402220138,1768609846347,-163.0,0.0001768,2]
[402220139,1768609846357,-163.0,0.0001768,2]
[402220140,1768609846367,-1000.0,0.00017698,2]
[402220141,1768609846376,-780.72386047,0.000177,2]
[402220142,1768609846386,-1300.0,0.000177,6]
[402220143,1768609846398,-1000.0,0.00017701,2]
[402220144,1768609846408,-5421.7,0.00017702,2]
[402220145,1768609846418,-1000.0,0.00017709,2]
[402220146,1768609846427,-600.0,0.00017726,7]
[402220147,1768609846437,-1500.0,0.00017726,7]
[402220148,1768609846447,-789.77249293,0.00017727,2]
[402220149,1768609846457,-150.0,0.0001773,2]
[402220150,1768609846467,-1000.0,0.0001774,2]
[402220151,1768609846477,-5421.7,0.00017752,2]
[402220152,1768609846487,-997.213,0.00017754,2]
[402220153,1768609846497,-1555.0,0.00017755,2]
[402220154,1768609846507,-1000.0,0.00017756,2]
[402220155,1768609846517,-1000.0,0.0001776,2]
[402220156,1768609846527,-1000.0,0.00017766,2]
[402220157,1768609846537,-2000.0,0.00017772,2]
[402220158,1768609846546,-2000.0,0.00017772,2]
[402220159,1768609846556,-1151.24424041,0.00017781,7]
[402220160,1768609846566,-2030.93130143,0.00017781,7]
[402220161,1768609846576,-3038.15176491,0.00017781,7]
[402220162,1768609846587,-4110.7176,0.00017781,7]
[402220163,1768609846597,-1000.0,0.00017783,2]
[402220164,1768609846607,-1000.0,0.00017798,2]
[402220165,1768609846618,-2833.52379571,0.000178,2]
[402220166,1768609846629,-12868.30948442,0.000178,2]
[402220167,1768609846639,-1000.0,0.000178,2]
[402220168,1768609846649,-1300.0,0.000178,6]
[402220169,1768609846659,-5421.7,0.00017801,2]
[402220170,1768609846669,-1000.0,0.00017808,2]
[402220171,1768609846679,-500.0,0.00017808,2]
[402220172,1768609846689,-1000.0,0.00017822,2]
[402220173,1768609846700,-1000.0,0.00017833,2]
[402220174,1768609846713,-1000.0,0.00017838,2]
[402220175,1768609846723,-1000.0,0.00017843,2]
[402220176,1768609846734,-150.0,0.00017851,2]
[402220177,1768609846745,-5421.7,0.00017851,2]
[402220178,1768609846755,-1000.0,0.00017852,2]
[402220179,1768609846765,-150.0,0.00017855,2]
[402220180,1768609846774,-200.0,0.00017855,2]
[402220182,1768609846784,-200.0,0.00017856,2]
[402220183,1768609846794,-200.0,0.00017856,2]
[402220184,1768609846804,-200.0,0.00017856,2]
[402220186,1768609846814,-200.0,0.00017856,2]
[402220187,1768609846823,-1000.0,0.00017856,2]
[402220188,1768609846833,-150.0,0.00017858,2]
[402220189,1768609846843,-500.0,0.00017863,2]
[402220190,1768609846852,-1000.0,0.00017891,2]
[402220191,1768609846862,-170.72,0.00017894,2]
[402220192,1768609846872,-150.0,0.00017898,2]
[402220193,1768609846881,-1000.0,0.00017899,2]
[402220194,1768609846891,-10000.0,0.000179,2]
[402220195,1768609846900,-182843.39442831,0.000179,2]
[402220196,1768609846910,-1300.0,0.000179,6]
[402220197,1768609846920,-748.48614739,0.000179,2]
[402220198,1768609846934,-4320.51577774,0.000179,2]
[402220199,1768609846946,-2469.12375321,0.000179,2]
[402220200,1768609846957,-2469.12375302,0.000179,2]
[402220201,1768609846967,-2469.12375302,0.000179,2]
[402220202,1768609846978,-2469.12375302,0.000179,2]
[402220203,1768609846988,-13822.4647637,0.000179,2]
[402220204,1768609846997,-522.84741115,0.000179,2]
[402220205,1768609847008,-2469.12375302,0.000179,2]
[402220206,1768609847018,-630.20836169,0.000179,2]
[402220207,1768609847028,-2469.12375302,0.000179,2]
[402220208,1768609847039,-2469.12375302,0.000179,2]
[402220209,1768609847050,-2469.12375302,0.000179,2]
[402220210,1768609847061,-2469.12375302,0.000179,2]
[402220211,1768609847071,-500.0,0.000179,2]
[402220212,1768609847082,-500.0,0.000179,2]
[402220213,1768609847092,-500.0,0.000179,2]
[402220214,1768609847102,-500.0,0.000179,2]
[402220215,1768609847112,-500.0,0.000179,2]
[402220216,1768609847122,-500.0,0.000179,2]
[402220217,1768609847131,-500.0,0.000179,2]
[402220218,1768609847141,-500.0,0.000179,2]
[402220219,1768609847152,-500.0,0.000179,2]
[402220220,1768609847163,-500.0,0.000179,2]
[402220221,1768609847172,-500.0,0.000179,2]
[402220222,1768609847183,-500.0,0.000179,2]
[402220223,1768609847193,-500.0,0.000179,2]
[402220224,1768609847204,-500.0,0.000179,2]
[402220225,1768609847214,-500.0,0.000179,2]
[402220226,1768609847223,-500.0,0.000179,2]
[402220227,1768609847234,-500.0,0.000179,2]
[402220228,1768609847244,-500.0,0.000179,2]
[402220229,1768609847253,-500.0,0.000179,2]
[402220230,1768609847263,-500.0,0.000179,2]
[402220231,1768609847273,-500.0,0.000179,2]
[402220232,1768609847283,-500.0,0.000179,2]
[402220233,1768609847292,-500.0,0.000179,2]
[402220234,1768609847303,-500.0,0.000179,2]
[402220235,1768609847314,-500.0,0.000179,2]
[402220236,1768609847323,-500.0,0.000179,2]
[402220237,1768609847333,-500.0,0.000179,2]
[402220238,1768609847343,-500.0,0.000179,2]
[402220239,1768609847352,-500.0,0.000179,2]
[402220240,1768609847362,-500.0,0.000179,2]
[402220241,1768609847372,-246.61200996,0.000179,2]
[402220242,1768609847382,-13556.0,0.000179,2]
[402220243,1768609847391,-5421.7,0.00017901,2]
[402220244,1768609847401,-500.0,0.00017918,2]
[402220245,1768609847411,-1000.0,0.00017932,2]
[402220246,1768609847420,-170.71312968,0.00017933,2]
[402220247,1768609847431,-150.0,0.0001794,2]
[402220248,1768609847442,-5421.7,0.0001795,2]
[402220249,1768609847453,-1000.0,0.00017951,2]
[402220250,1768609847462,-150.0,0.00017952,2]
[402220251,1768609847472,-290.0,0.00017954,2]
[402220252,1768609847482,-451.63661352,0.00017963,2]
[402220253,1768609847493,-1000.0,0.00017967,2]
[402220254,1768609847503,-500.0,0.0001797,2]
[402220255,1768609847514,-500.0,0.0001797,2]
[402220256,1768609847524,-500.0,0.0001797,2]
[402220257,1768609847533,-500.0,0.0001797,2]
[402220258,1768609847545,-500.0,0.0001797,2]
[402220259,1768609847555,-500.0,0.0001797,2]
[402220260,1768609847565,-700.0,0.0001797,2]
[402220261,1768609847574,-700.0,0.0001797,2]
[402220262,1768609847585,-700.0,0.0001797,2]
[402220263,1768609847595,-700.0,0.0001797,2]
[402220264,1768609847604,-1100.0,0.0001797,2]
[402220265,1768609847614,-1000.0,0.00017972,2]
[402220266,1768609847624,-150.0,0.00017972,2]
[402220267,1768609847635,-161.53790585,0.00017972,2]
[402220268,1768609847644,-14603.0,0.00017973,2]
[402220269,1768609847655,-167.7388824,0.00017973,2]
[402220270,1768609847665,-500.0,0.00017973,2]
[402220271,1768609847675,-500.0,0.00017973,2]
[402220272,1768609847686,-500.0,0.00017973,2]
[402220273,1768609847696,-500.0,0.00017973,2]
[402220274,1768609847707,-500.0,0.00017973,2]
[402220275,1768609847717,-162.08836335,0.00017973,2]
[402220276,1768609847729,-500.0,0.00017973,2]
[402220277,1768609847739,-224.95173131,0.00017973,2]
[402220278,1768609847750,-500.0,0.00017973,2]
[402220279,1768609847759,-500.0,0.00017973,2]
[402220280,1768609847769,-500.0,0.00017973,2]
[402220281,1768609847779,-500.0,0.00017973,2]
[402220282,1768609847790,-500.0,0.00017973,2]
[402220283,1768609847800,-169.97038428,0.00017973,2]
[402220284,1768609847811,-173.41873648,0.00017973,2]
[402220285,1768609847822,-537.99763176,0.00017973,2]
[402220286,1768609847832,-500.0,0.00017973,2]
[402220287,1768609847844,-500.40951905,0.00017973,2]
[402220288,1768609847853,-175.44055186,0.00017973,2]
[402220289,1768609847862,-500.0,0.00017973,2]
[402220290,1768609847872,-500.0,0.00017973,2]
[402220291,1768609847881,-502.17302692,0.00017973,2]
[402220292,1768609847891,-500.0,0.00017973,2]
[402220293,1768609847901,-500.0,0.00017973,2]
[402220294,1768609847910,-217.157295,0.00017973,2]
[402220295,1768609847920,-500.0,0.00017973,2]
[402220296,1768609847929,-500.0,0.00017973,2]
[402220297,1768609847942,-500.0,0.00017973,2]
[402220298,1768609847952,-163.5202818,0.00017973,2]
[402220299,1768609847962,-372.89690242,0.00017973,2]
[402220300,1768609847973,-316.69909826,0.00017973,2]
[402220301,1768609847983,-169.27774765,0.00017973,2]
[402220302,1768609847993,-500.0,0.00017973,2]
[402220303,1768609848006,-500.0,0.00017973,2]
[402220304,1768609848016,-500.0,0.00017973,2]